fUSD/lending_fUSD_20240429
["ID","MTS","AMOUNT","RATE_DAILY","PERIOD"]
[324868699,1714383070612,-500.0,0.00012328,2]
[324868700,1714383070621,-500.0,0.00012328,2]
[324868701,1714383070630,-500.0,0.00012328,2]
[324868702,1714383070639,-500.0,0.00012328,2]
[324868703,1714383070648,-500.0,0.00012328,2]
[324868704,1714383070657,-500.0,0.00012328,2]
[324868705,1714383070666,-151.0,0.00012328,2]
[324868706,1714383070675,-539.92873351,0.00012328,2]
[324868707,1714383070684,-500.0,0.00012328,2]
[324868708,1714383070693,-500.0,0.00012328,2]
[324868709,1714383070702,-500.0,0.00012328,2]
[324868710,1714383070711,-500.0,0.00012328,2]
[324868711,1714383070720,-244.76,0.00012328,2]
[324868712,1714383070729,-500.0,0.00012328,2]
[324868713,1714383070738,-151.0,0.00012328,2]
[324868714,1714383070750,-500.0,0.00012328,2]
[324868715,1714383070760,-150.0,0.00012328,2]
[324868716,1714383070769,-500.0,0.00012328,2]
[324868717,1714383070778,-500.0,0.00012328,2]
[324868718,1714383070787,-500.0,0.00012328,2]
[324868719,1714383070796,-500.0,0.00012328,2]
[324868720,1714383070806,-205.69,0.00012328,2]
[324868721,1714383070815,-500.0,0.00012328,2]
[324868722,1714383070824,-177.89,0.00012328,2]
[324868723,1714383070833,-500.0,0.00012328,2]
[324868724,1714383070842,-500.0,0.00012328,2]
[324868725,1714383070851,-500.0,0.00012328,2]
[324868726,1714383070861,-500.0,0.00012328,2]
[324868727,1714383070870,-500.0,0.00012328,2]
[324868728,1714383070879,-500.0,0.00012328,2]
[324868729,1714383070888,-500.0,0.00012328,2]
[324868730,1714383070897,-389.88,0.00012328,2]
[324868731,1714383070907,-151.3011032,0.00012328,2]
[324868732,1714383070916,-500.0,0.00012328,2]
[324868733,1714383070926,-500.0,0.00012328,2]
[324868734,1714383070938,-500.0,0.00012328,2]
[324868735,1714383070948,-500.0,0.00012328,2]
[324868736,1714383070957,-500.0,0.00012328,2]
[324868737,1714383070966,-500.0,0.00012328,2]
[324868738,1714383070976,-500.0,0.00012328,2]
[324868739,1714383070985,-1908.2,0.00012328,2]
[324868740,1714383070997,-397.02,0.00012328,2]
[324868741,1714383071007,-500.0,0.00012328,2]
[324868742,1714383071016,-500.0,0.00012328,2]
[324868743,1714383071025,-151.0,0.00012328,2]
[324868744,1714383071035,-7746.08,0.00012328,2]
[324868745,1714383071044,-500.0,0.00012328,2]
[324868746,1714383071053,-500.0,0.00012328,2]
[324868747,1714383071063,-533.25419035,0.00012328,2]
[324868748,1714383071072,-536.34,0.00012328,2]
[324868749,1714383071081,-500.0,0.00012328,2]
[324868750,1714383071090,-570.08,0.00012328,2]
[324868751,1714383071100,-3823.16,0.00012328,2]
[324868752,1714383071109,-500.0,0.00012328,2]
[324868753,1714383071119,-151.0,0.00012328,2]
[324868754,1714383071128,-500.0,0.00012328,2]
[324868755,1714383071137,-588.33,0.00012328,2]
[324868756,1714383071146,-500.0,0.00012328,2]
[324868757,1714383071156,-718.39,0.00012328,2]
[324868758,1714383071165,-500.0,0.00012328,2]
[324868759,1714383071176,-500.0,0.00012328,2]
[324868760,1714383071185,-500.0,0.00012328,2]
[324868761,1714383071195,-151.0,0.00012328,2]
[324868762,1714383071204,-500.0,0.00012328,2]
[324868763,1714383071214,-530.31,0.00012328,2]
[324868764,1714383071223,-500.0,0.00012328,2]
[324868765,1714383071232,-500.0,0.00012328,2]
[324868766,1714383071244,-500.0,0.00012328,2]
[324868767,1714383071253,-500.0,0.00012328,2]
[324868768,1714383071262,-223.527015,0.00012328,2]
[324868769,1714383071272,-9880.54,0.00012328,2]
[324868770,1714383071281,-500.0,0.00012328,2]
[324868771,1714383071291,-500.0,0.00012328,2]
[324868772,1714383071300,-500.0,0.00012328,2]
[324868773,1714383071309,-500.0,0.00012328,2]
[324868774,1714383071319,-500.0,0.00012328,2]
[324868775,1714383071328,-500.0,0.00012328,2]
[324868776,1714383071337,-527.89,0.00012328,2]
[324868777,1714383071347,-500.0,0.00012328,2]
[324868778,1714383071356,-500.0,0.00012328,2]
[324868779,1714383071365,-429.027676,0.00012328,2]
[324868780,1714383071375,-500.0,0.00012328,2]
[324868781,1714383071384,-429.027676,0.00012328,2]
[324868782,1714383071392,-500.0,0.00012328,2]
[324868783,1714383071402,-500.0,0.00012328,2]
[324868784,1714383071411,-500.0,0.00012328,2]
[324868785,1714383071420,-1457.29,0.00012328,2]
[324868786,1714383071430,-781.85,0.00012328,2]
[324868787,1714383071439,-604.98,0.00012328,2]
[324868788,1714383071448,-973.23,0.00012328,2]
[324868789,1714383071457,-1098.2,0.00012328,2]
[324868790,1714383071467,-500.0,0.00012328,2]
[324868791,1714383071476,-9775.91,0.00012328,2]
[324868792,1714383071485,-500.0,0.00012328,2]
[324868793,1714383071496,-500.0,0.00012328,2]
[324868794,1714383071505,-935.78,0.00012328,2]
[324868795,1714383071514,-500.0,0.00012328,2]
[324868796,1714383071524,-500.0,0.00012328,2]
[324868797,1714383071533,-500.0,0.00012328,2]
[324868798,1714383071543,-227.603446,0.00012328,2]
[324868799,1714383071552,-500.0,0.00012328,2]
[324868800,1714383071561,-625.92,0.00012328,2]
[324868801,1714383071571,-500.0,0.00012328,2]
[324868802,1714383071580,-519.52102298,0.00012328,2]
[324868803,1714383071589,-1868.4,0.00012328,2]
[324868804,1714383071598,-3931.33,0.00012328,2]
[324868805,1714383071607,-500.0,0.00012328,2]
[324868806,1714383071616,-500.0,0.00012328,2]
[324868807,1714383071625,-254.700334,0.00012328,2]
[324868808,1714383071763,-500.0,0.00012328,2]
[324868809,1714383071773,-500.0,0.00012328,2]
[324868810,1714383071782,-500.0,0.00012328,2]
[324868811,1714383071792,-500.0,0.00012328,2]
[324868812,1714383071801,-500.0,0.00012328,2]
[324868813,1714383071810,-500.0,0.00012328,2]
[324868814,1714383071820,-527.83,0.00012328,2]
[324868815,1714383071829,-500.0,0.00012328,2]
[324868816,1714383071838,-500.0,0.00012328,2]
[324868817,1714383071847,-500.0,0.00012328,2]
[324868818,1714383071857,-500.0,0.00012328,2]
[324868819,1714383071866,-1355.1,0.00012328,2]
[324868820,1714383071876,-500.0,0.00012328,2]
[324868821,1714383071885,-151.0,0.00012328,2]
[324868822,1714383071895,-909.97,0.00012328,2]
[324868823,1714383071904,-1359.97,0.00012328,2]
[324868824,1714383071914,-736.29,0.00012328,2]
[324868825,1714383071924,-151.0,0.00012328,2]
[324868826,1714383071936,-500.0,0.00012328,2]
[324868827,1714383071945,-500.0,0.00012328,2]
[324868828,1714383071954,-500.0,0.00012328,2]
[324868829,1714383071964,-500.0,0.00012328,2]
[324868830,1714383071974,-1170.5,0.00012328,2]
[324868831,1714383071983,-1606.32,0.00012328,2]
[324868832,1714383071994,-500.0,0.00012328,2]
[324868833,1714383072004,-710.61,0.00012328,2]
[324868834,1714383072014,-500.0,0.00012328,2]
[324868835,1714383072024,-151.0,0.00012328,2]
[324868836,1714383072033,-500.0,0.00012328,2]
[324868837,1714383072042,-500.0,0.00012328,2]
[324868838,1714383072052,-151.0,0.00012328,2]
[324868839,1714383072061,-500.0,0.00012328,2]
[324868840,1714383072070,-500.0,0.00012328,2]
[324868841,1714383072079,-1502.6,0.00012328,2]
[324868842,1714383072090,-500.0,0.00012328,2]
[324868843,1714383072100,-500.0,0.00012328,2]
[324868844,1714383072109,-500.0,0.00012328,2]
[324868845,1714383072119,-500.0,0.00012328,2]
[324868846,1714383072129,-500.0,0.00012328,2]
[324868847,1714383072138,-500.0,0.00012328,2]
[324868848,1714383072147,-2577.29,0.00012328,2]
[324868849,1714383072156,-500.0,0.00012328,2]
[324868850,1714383072165,-634.66,0.00012328,2]
[324868851,1714383072175,-226.10748064,0.00012328,2]
[324868852,1714383072184,-226.51855,0.00012328,2]
[324868853,1714383072193,-831.39,0.00012328,2]
[324868854,1714383072202,-600.46,0.00012328,2]
[324868855,1714383072211,-226.51855,0.00012328,2]
[324868856,1714383072221,-759.67,0.00012328,2]
[324868857,1714383072230,-649.92,0.00012328,2]
[324868858,1714383072239,-500.0,0.00012328,2]
[324868859,1714383072249,-500.0,0.00012328,2]
[324868860,1714383072259,-500.0,0.00012328,2]
[324868861,1714383072268,-8340.65,0.00012328,2]
[324868862,1714383072278,-716.4,0.00012328,2]
[324868863,1714383072287,-1431.64,0.00012328,2]
[324868864,1714383072297,-1056.97,0.00012328,2]
[324868865,1714383072307,-771.03,0.00012328,2]
[324868866,1714383072316,-523.90908588,0.00012328,2]
[324868867,1714383072326,-681.64,0.00012328,2]
[324868868,1714383072335,-500.0,0.00012328,2]
[324868869,1714383072344,-500.0,0.00012328,2]
[324868870,1714383072354,-1320.35,0.00012328,2]
[324868871,1714383072363,-500.0,0.00012328,2]
[324868872,1714383072372,-500.0,0.00012328,2]
[324868873,1714383072381,-3140.0,0.00012328,2]
[324868874,1714383072390,-1775.35,0.00012328,2]
[324868875,1714383072399,-257.815846,0.00012328,2]
[324868876,1714383072408,-500.0,0.00012328,2]
[324868877,1714383072418,-257.815846,0.00012328,2]
[324868878,1714383072427,-500.0,0.00012328,2]
[324868879,1714383072437,-854.83,0.00012328,2]
[324868880,1714383072447,-500.0,0.00012328,2]
[324868881,1714383072456,-500.0,0.00012328,2]
[324868882,1714383072466,-500.0,0.00012328,2]
[324868883,1714383072475,-500.0,0.00012328,2]
[324868884,1714383072484,-500.0,0.00012328,2]
[324868885,1714383072494,-500.0,0.00012328,2]
[324868886,1714383072504,-500.0,0.00012328,2]
[324868887,1714383072513,-500.0,0.00012328,2]
[324868888,1714383072522,-500.0,0.00012328,2]
[324868889,1714383072532,-500.0,0.00012328,2]
[324868890,1714383072541,-1642.24,0.00012328,2]
[324868891,1714383072551,-517.02,0.00012328,2]
[324868892,1714383072560,-500.0,0.00012328,2]
[324868893,1714383072570,-643.08,0.00012328,2]
[324868894,1714383072579,-500.0,0.00012328,2]
[324868895,1714383072588,-500.0,0.00012328,2]
[324868896,1714383072598,-717.26,0.00012328,2]
[324868897,1714383072609,-500.0,0.00012328,2]
[324868898,1714383072618,-500.0,0.00012328,2]
[324868899,1714383072627,-623.47918101,0.00012328,2]
[324868900,1714383072637,-500.0,0.00012328,2]
[324868901,1714383072646,-500.0,0.00012328,2]
[324868902,1714383072655,-500.0,0.00012328,2]
[324868903,1714383072664,-500.0,0.00012328,2]
[324868904,1714383072673,-500.0,0.00012328,2]
[324868905,1714383072683,-500.0,0.00012328,2]
[324868906,1714383072692,-500.0,0.00012328,2]
[324868907,1714383072701,-1563.05,0.00012328,2]
[324868908,1714383072711,-1217.65,0.00012328,2]
[324868909,1714383072720,-500.0,0.00012328,2]
[324868910,1714383072731,-150.0,0.0001236,3]
[324868911,1714383072741,-258.11,0.00012362,2]
[324868912,1714383072753,-500.0,0.00012368,2]
[324868913,1714383072763,-713.43468894,0.00012369,2]
[324868914,1714383072771,-290.10285493,0.00012369,2]
[324868915,1714383072780,-151.0,0.00012369,2]
[324868916,1714383072789,-500.0,0.00012369,2]
[324868917,1714383072798,-575.97523755,0.00012369,2]
[324868918,1714383072807,-500.0,0.00012369,2]
[324868919,1714383072816,-500.0,0.00012369,2]
[324868920,1714383072825,-500.0,0.00012369,2]
[324868921,1714383072835,-500.0,0.00012369,2]
[324868922,1714383072844,-500.0,0.00012369,2]
[324868923,1714383072854,-500.0,0.00012369,2]
[324868924,1714383072863,-500.0,0.00012369,2]
[324868925,1714383072874,-500.0,0.00012369,2]
[324868926,1714383072883,-500.0,0.00012369,2]
[324868927,1714383072892,-500.0,0.00012369,2]
[324868928,1714383072902,-500.0,0.00012369,2]
[324868929,1714383072911,-500.0,0.00012369,2]
[324868930,1714383072921,-500.0,0.00012369,2]
[324868931,1714383072931,-500.0,0.00012369,2]
[324868932,1714383072941,-500.0,0.00012369,2]
[324868933,1714383072951,-504.06966058,0.00012369,2]
[324868934,1714383072960,-513.27899213,0.00012369,2]
[324868935,1714383072970,-500.0,0.00012369,2]
[324868936,1714383072980,-500.0,0.00012369,2]
[324868937,1714383072989,-500.0,0.00012369,2]
[324868938,1714383073002,-500.0,0.00012369,2]
[324868939,1714383073014,-500.0,0.00012369,2]
[324868940,1714383073023,-500.0,0.00012369,2]
[324868941,1714383073032,-500.0,0.00012369,2]
[324868942,1714383073041,-500.0,0.00012369,2]
[324868943,1714383073050,-500.0,0.00012369,2]
[324868944,1714383073060,-500.0,0.00012369,2]
[324868945,1714383073069,-500.0,0.00012369,2]
[324868946,1714383073079,-500.0,0.00012369,2]
[324868947,1714383073088,-500.0,0.00012369,2]
[324868948,1714383073098,-500.0,0.00012369,2]
[324868949,1714383073107,-500.0,0.00012369,2]
[324868950,1714383073116,-500.0,0.00012369,2]
[324868951,1714383073126,-500.0,0.00012369,2]
[324868952,1714383073136,-500.0,0.00012369,2]
[324868953,1714383073146,-534.46922477,0.00012369,2]
[324868954,1714383073155,-500.0,0.00012369,2]
[324868955,1714383073164,-500.0,0.00012369,2]
[324868956,1714383073173,-549.26,0.00012369,2]
[324868957,1714383073183,-500.0,0.00012369,2]
[324868958,1714383073192,-500.0,0.00012369,2]
[324868959,1714383073201,-500.0,0.00012369,2]
[324868960,1714383073211,-505.23263899,0.00012369,2]
[324868961,1714383073221,-500.0,0.00012369,2]
[324868962,1714383073230,-500.0,0.00012369,2]
[324868963,1714383073240,-500.0,0.00012369,2]
[324868964,1714383073254,-500.0,0.00012369,2]
[324868965,1714383073264,-500.0,0.00012369,2]
[324868966,1714383073273,-500.0,0.00012369,2]
[324868967,1714383073283,-500.0,0.00012369,2]
[324868968,1714383073292,-500.0,0.00012369,2]
[324868969,1714383073302,-500.0,0.00012369,2]
[324868970,1714383073311,-530.61642097,0.00012369,2]
[324868971,1714383073320,-500.0,0.00012369,2]
[324868972,1714383073329,-500.0,0.00012369,2]
[324868973,1714383073340,-208.41376412,0.0001237,2]
[324868974,1714383073350,-151.596133,0.0001237,2]
[324868975,1714383073360,-500.0,0.0001237,2]
[324868976,1714383073370,-500.0,0.0001237,2]
[324868977,1714383073381,-500.0,0.0001237,2]
[324868978,1714383073390,-177.08401672,0.00012371,2]
[324868979,1714383073399,-155.07796774,0.00012371,2]
[324868980,1714383073409,-2413.75224764,0.00012371,2]
[324868981,1714383073418,-156.7339437,0.00012371,2]
[324868982,1714383073427,-501.67515357,0.00012371,2]
[324868983,1714383073437,-514.27254017,0.00012371,2]
[324868984,1714383073447,-507.42244143,0.00012371,2]
[324868985,1714383073456,-608.09373094,0.00012371,2]
[324868986,1714383073466,-584.12288152,0.00012371,2]
[324868987,1714383073476,-500.0,0.00012371,2]
[324868988,1714383073486,-504.83850367,0.00012371,2]
[324868989,1714383073499,-500.0,0.00012371,2]
[324868990,1714383073508,-500.0,0.00012371,2]
[324868991,1714383073517,-441.41393998,0.00012371,2]
[324868992,1714383073527,-156.12995152,0.00012371,2]
[324868993,1714383073536,-333.86165224,0.00012371,2]
[324868994,1714383073545,-500.0,0.00012371,2]
[324868995,1714383073554,-500.0,0.00012371,2]
[324868996,1714383073563,-500.0,0.00012371,2]
[324868997,1714383073572,-500.0,0.00012371,2]
[324868998,1714383073582,-500.0,0.00012371,2]
[324868999,1714383073591,-500.0,0.00012371,2]
[324869000,1714383073600,-505.99671944,0.00012371,2]
[324869001,1714383073609,-220.74851532,0.00012371,2]
[324869002,1714383073618,-500.0,0.00012371,2]
[324869003,1714383073627,-501.37842399,0.00012371,2]
[324869004,1714383073636,-500.0,0.00012371,2]
[324869005,1714383073646,-521.79,0.00012371,2]
[324869006,1714383073655,-500.0,0.00012371,2]
[324869007,1714383073665,-500.0,0.00012371,2]
[324869008,1714383073674,-502.71239171,0.00012371,2]
[324869009,1714383073683,-500.0,0.00012371,2]
[324869010,1714383073692,-500.0,0.00012371,2]
[324869011,1714383073702,-500.0,0.00012371,2]
[324869012,1714383073711,-159.34192956,0.00012371,2]
[324869013,1714383073720,-513.23,0.00012371,2]
[324869014,1714383073729,-500.0,0.00012371,2]
[324869015,1714383073739,-500.0,0.00012371,2]
[324869016,1714383073750,-500.0,0.00012371,2]
[324869017,1714383073759,-500.0,0.00012371,2]
[324869018,1714383073769,-500.0,0.00012371,2]
[324869019,1714383073778,-500.0,0.00012371,2]
[324869020,1714383073788,-1355.89,0.00012371,2]
[324869021,1714383073797,-500.0,0.00012371,2]
[324869022,1714383073806,-500.0,0.00012371,2]
[324869023,1714383073815,-500.0,0.00012371,2]
[324869024,1714383073824,-500.0,0.00012371,2]
[324869025,1714383073834,-500.0,0.00012371,2]
[324869026,1714383073843,-504.22795686,0.00012371,2]
[324869027,1714383073853,-500.0,0.00012371,2]
[324869028,1714383073862,-500.0,0.00012371,2]
[324869029,1714383073871,-500.0,0.00012371,2]
[324869030,1714383073880,-500.0,0.00012371,2]
[324869031,1714383073890,-501.57662709,0.00012371,2]
[324869032,1714383073899,-500.0,0.00012371,2]
[324869033,1714383073908,-500.0,0.00012371,2]
[324869034,1714383073918,-500.0,0.00012371,2]
[324869035,1714383073932,-500.0,0.00012371,2]
[324869036,1714383073942,-500.0,0.00012371,2]
[324869037,1714383073951,-500.0,0.00012371,2]
[324869038,1714383073960,-500.0,0.00012371,2]
[324869039,1714383073970,-500.0,0.00012371,2]
[324869040,1714383073979,-500.0,0.00012371,2]
[324869041,1714383073988,-500.0,0.00012371,2]
[324869042,1714383073999,-502.48180941,0.00012371,2]
[324869043,1714383074008,-540.81,0.00012371,2]
[324869044,1714383074020,-500.0,0.00012371,2]
[324869045,1714383074029,-590.51,0.00012371,2]
[324869046,1714383074038,-500.0,0.00012371,2]
[324869047,1714383074047,-513.58362604,0.00012371,2]
[324869048,1714383074056,-500.0,0.00012371,2]
[324869049,1714383074066,-464.47908303,0.00012371,2]
[324869050,1714383074075,-500.0,0.00012371,2]
[324869051,1714383074194,-500.0,0.00012371,2]
[324869052,1714383074217,-500.0,0.00012371,2]
[324869053,1714383074227,-500.0,0.00012371,2]
[324869054,1714383074237,-500.0,0.00012371,2]
[324869055,1714383074248,-500.0,0.00012371,2]
[324869056,1714383074258,-500.0,0.00012371,2]
[324869057,1714383074268,-467.53895108,0.00012371,2]
[324869058,1714383074277,-500.0,0.00012371,2]
[324869059,1714383074286,-500.0,0.00012371,2]
[324869060,1714383074296,-500.0,0.00012371,2]
[324869061,1714383074306,-500.0,0.00012371,2]
[324869062,1714383074315,-506.8510978,0.00012371,2]
[324869063,1714383074324,-500.0,0.00012371,2]
[324869064,1714383074334,-489.23283307,0.00012371,2]
[324869065,1714383074343,-500.0,0.00012371,2]
[324869066,1714383074353,-437.97910558,0.00012371,2]
[324869067,1714383074363,-500.0,0.00012371,2]
[324869068,1714383074372,-586.13,0.00012371,2]
[324869069,1714383074381,-500.0,0.00012371,2]
[324869070,1714383074392,-500.0,0.00012371,2]
[324869071,1714383074402,-500.0,0.00012371,2]
[324869072,1714383074411,-500.0,0.00012371,2]
[324869073,1714383074420,-500.0,0.00012371,2]
[324869074,1714383074430,-500.0,0.00012371,2]
[324869075,1714383074439,-500.0,0.00012371,2]
[324869076,1714383074449,-505.54443567,0.00012371,2]
[324869077,1714383074458,-500.0,0.00012371,2]
[324869078,1714383074467,-500.0,0.00012371,2]
[324869079,1714383074477,-500.0,0.00012371,2]
[324869080,1714383074486,-500.0,0.00012371,2]
[324869081,1714383074498,-504.28906874,0.00012371,2]
[324869082,1714383074508,-500.0,0.00012371,2]
[324869083,1714383074518,-493.44750097,0.00012371,2]
[324869084,1714383074527,-500.0,0.00012371,2]
[324869085,1714383074538,-500.0,0.00012371,2]
[324869086,1714383074547,-500.0,0.00012371,2]
[324869087,1714383074557,-500.0,0.00012371,2]
[324869088,1714383074566,-500.0,0.00012371,2]
[324869089,1714383074575,-500.0,0.00012371,2]
[324869090,1714383074585,-500.0,0.00012371,2]
[324869091,1714383074594,-500.0,0.00012371,2]
[324869092,1714383074603,-504.82289638,0.00012371,2]
[324869093,1714383074613,-500.0,0.00012371,2]
[324869094,1714383074622,-500.0,0.00012371,2]
[324869095,1714383074631,-539.06678965,0.00012371,2]
[324869096,1714383074641,-500.0,0.00012371,2]
[324869097,1714383074650,-492.06,0.00012371,2]
[324869098,1714383074659,-150.77542682,0.00012371,2]
[324869099,1714383074668,-500.53539933,0.00012371,2]
[324869100,1714383074677,-357.69619574,0.00012371,2]
[324869101,1714383074687,-500.0,0.00012371,2]
[324869102,1714383074696,-151.0,0.00012371,2]
[324869103,1714383074706,-291.139574,0.00012371,2]
[324869104,1714383074715,-151.0,0.00012371,2]
[324869105,1714383074724,-151.0,0.00012371,2]
[324869106,1714383074733,-151.0,0.00012371,2]
[324869107,1714383074743,-151.0,0.00012371,2]
[324869108,1714383074752,-429.027676,0.00012371,2]
[324869109,1714383074762,-429.027676,0.00012371,2]
[324869110,1714383074771,-500.0,0.00012371,2]
[324869111,1714383074781,-2151.59467475,0.00012376,2]
[324869112,1714383074790,-2000.0,0.00012396,2]
[324869113,1714383074799,-200.0,0.00012396,2]
[324869114,1714383074808,-2000.0,0.00012396,2]
[324869115,1714383074818,-200.0,0.00012396,2]
[324869116,1714383074828,-2000.0,0.00012396,2]
[324869117,1714383074838,-200.0,0.00012396,2]
[324869118,1714383074847,-2000.0,0.00012396,2]
[324869119,1714383074856,-200.0,0.00012396,2]
[324869120,1714383074866,-150.0,0.00012398,2]
[324869121,1714383074875,-150.0,0.00012398,2]
[324869122,1714383074885,-12619.37941851,0.000124,2]
[324869123,1714383074894,-151.0,0.000124,2]
[324869124,1714383074904,-151.0,0.000124,2]
[324869125,1714383074913,-151.0,0.000124,2]
[324869126,1714383074924,-151.0,0.000124,2]
[324869127,1714383074936,-226.51855,0.000124,2]
[324869128,1714383074946,-226.51855,0.000124,2]
[324869129,1714383074955,-963.58457792,0.000124,2]
[324869130,1714383074964,-151.0,0.00012402,2]
[324869131,1714383074974,-150.0,0.00012406,2]
[324869132,1714383074985,-150.0,0.00012408,2]
[324869133,1714383074996,-150.0,0.00012412,2]
[324869134,1714383075006,-150.0,0.00012414,2]
[324869135,1714383075016,-279.18272762,0.00012415,2]
[324869136,1714383075026,-150.0,0.00012416,2]
[324869137,1714383075036,-150.0,0.00012416,2]
[324869138,1714383075045,-150.0,0.00012416,2]
[324869139,1714383075055,-807.0,0.00012418,2]
[324869140,1714383075064,-1500.0,0.00012421,2]
[324869141,1714383075074,-150.0,0.00012424,2]
[324869142,1714383075084,-1500.0,0.00012425,2]
[324869143,1714383075094,-150.0,0.00012426,2]
[324869144,1714383075104,-2151.59467475,0.00012429,2]
[324869145,1714383075116,-150.0,0.00012429,2]
[324869146,1714383075126,-300.0,0.0001243,2]
[324869147,1714383075136,-150.0,0.00012431,2]
[324869148,1714383075146,-1500.0,0.00012433,2]
[324869149,1714383075156,-150.0,0.00012433,2]
[324869150,1714383075165,-150.0,0.00012437,2]
[324869151,1714383075175,-150.0,0.00012438,2]
[324869152,1714383075185,-150.0,0.0001244,2]
[324869153,1714383075196,-1500.0,0.00012442,2]
[324869154,1714383075207,-150.0,0.00012443,2]
[324869155,1714383075217,-500.0,0.00012444,2]
[324869156,1714383075226,-150.0,0.00012445,2]
[324869157,1714383075236,-1500.0,0.00012448,2]
[324869158,1714383075246,-150.0,0.0001245,2]
[324869159,1714383075256,-1500.0,0.00012452,2]
[324869160,1714383075266,-257.815846,0.00012452,2]
[324869161,1714383075276,-257.815846,0.00012452,2]
[324869162,1714383075285,-150.0,0.00012453,2]
[324869163,1714383075294,-150.0,0.00012458,2]
[324869164,1714383075303,-150.0,0.0001246,2]
[324869165,1714383075312,-150.0,0.00012461,2]
[324869166,1714383075322,-150.0,0.00012464,2]
[324869167,1714383075331,-150.0,0.00012466,2]
[324869168,1714383075340,-150.0,0.00012466,2]
[324869169,1714383075349,-150.0,0.00012466,2]
[324869170,1714383075359,-150.0,0.00012466,2]
[324869171,1714383075368,-150.0,0.00012466,2]
[324869172,1714383075377,-150.0,0.00012466,2]
[324869173,1714383075387,-150.0,0.00012466,2]
[324869174,1714383075396,-150.0,0.00012469,2]
[324869175,1714383075405,-150.0,0.00012477,2]
[324869176,1714383075415,-150.0,0.00012478,2]
[324869177,1714383075426,-150.0,0.00012478,2]
[324869178,1714383075435,-150.0,0.00012478,2]
[324869179,1714383075444,-500.0,0.00012479,2]
[324869180,1714383075454,-150.0,0.00012481,2]
[324869181,1714383075464,-2151.59467475,0.00012481,2]
[324869182,1714383075473,-150.0,0.00012484,2]
[324869183,1714383075483,-1092.33900088,0.00012487,2]
[324869184,1714383075493,-300.0,0.00012488,2]
[324869185,1714383075503,-150.0,0.0001249,2]
[324869186,1714383075512,-1500.0,0.00012493,2]
[324869187,1714383075522,-500.0,0.00012496,2]
[324869188,1714383075532,-150.0,0.00012496,2]
[324869189,1714383075542,-150.0,0.00012497,2]
[324869190,1714383075552,-150.0,0.00012498,2]
[324869191,1714383075561,-150.0,0.00012498,2]
[324869192,1714383075571,-168.70521326,0.000125,2]
[324869193,1714383075581,-151.0,0.000125,2]
[324869194,1714383075590,-150.0,0.000125,2]
[324869195,1714383075599,-150.0,0.00012504,2]
[324869196,1714383075609,-1500.0,0.00012507,2]
[324869197,1714383075618,-150.0,0.00012512,2]
[324869198,1714383075627,-300.0,0.00012515,2]